[Event "*** Titled Tuesday Blitz"]
[Site "Chess.com"]
[Date "2020.05.05"]
[Round "9"]
[White "ArnaudovP"]
[Black "Spartakus1975"]
[Result "0-1"]
[WhiteElo "2607"]
[BlackElo "2749"]
[TimeControl "180+1"]
[EndTime "11:44:18 PDT"]
[Termination "Spartakus1975 won by resignation"]

1. Nf3 {[%clk 0:03:00.9]} 1... d5 {[%clk 0:02:54.4]} 2. d4 {[%clk 0:03:00.4]}
2... Nf6 {[%clk 0:02:53.8]} 3. c4 {[%clk 0:03:00.2]} 3... c6 {[%clk 0:02:53.9]}
4. Nc3 {[%clk 0:02:59.9]} 4... a6 {[%clk 0:02:54.1]} 5. Qc2 {[%clk 0:02:59.2]}
5... g6 {[%clk 0:02:52.3]} 6. e4 {[%clk 0:02:58]} 6... dxe4 {[%clk 0:02:52.4]}
7. Nxe4 {[%clk 0:02:58.5]} 7... Nbd7 {[%clk 0:02:47.1]} 8. Be2 {[%clk 0:02:39]}
8... Bg7 {[%clk 0:02:41.4]} 9. O-O {[%clk 0:02:38.5]} 9... O-O {[%clk
0:02:41.8]} 10. h3 {[%clk 0:02:29.5]} 10... Re8 {[%clk 0:02:33.4]} 11. Rd1
{[%clk 0:02:27.9]} 11... Qc7 {[%clk 0:02:27.1]} 12. b3 {[%clk 0:02:25.6]} 12...
Nxe4 {[%clk 0:02:18.9]} 13. Qxe4 {[%clk 0:02:25]} 13... e5 {[%clk 0:02:14.8]}
14. Bb2 {[%clk 0:02:11.7]} 14... f5 {[%clk 0:02:10]} 15. Qc2 {[%clk 0:02:01]}
15... e4 {[%clk 0:02:08.8]} 16. Ng5 {[%clk 0:02:01.1]} 16... h6 {[%clk
0:02:04.2]} 17. d5 {[%clk 0:01:48.8]} 17... hxg5 {[%clk 0:02:03.3]} 18. Bxg7
{[%clk 0:01:47.2]} 18... Kxg7 {[%clk 0:02:02.7]} 19. d6 {[%clk 0:01:47.7]} 19...
Qa5 {[%clk 0:02:00.3]} 20. a3 {[%clk 0:01:44.1]} 20... Qe5 {[%clk 0:01:59.4]}
21. b4 {[%clk 0:01:43.6]} 21... Nf6 {[%clk 0:01:57.2]} 22. c5 {[%clk 0:01:43.9]}
22... Be6 {[%clk 0:01:56.9]} 23. Bc4 {[%clk 0:01:42.6]} 23... Nd5 {[%clk
0:01:48.1]} 24. Bxd5 {[%clk 0:01:41.8]} 24... Bxd5 {[%clk 0:01:48.1]} 0-1

[Event "*** Titled Tuesday Blitz"]
[Site "Chess.com"]
[Date "2020.05.05"]
[Round "9"]
[White "Mesa_1"]
[Black "ntmh281"]
[Result "1-0"]
[WhiteElo "2462"]
[BlackElo "2292"]
[TimeControl "180+1"]
[EndTime "11:44:19 PDT"]
[Termination "Mesa_1 won by checkmate"]

1. Nf3 {[%clk 0:03:00.9]} 1... d5 {[%clk 0:02:59.3]} 2. c4 {[%clk 0:03:00.1]}
2... c6 {[%clk 0:02:59.4]} 3. d4 {[%clk 0:02:57.5]} 3... Nf6 {[%clk 0:02:59.6]}
4. g3 {[%clk 0:02:56.5]} 4... Bf5 {[%clk 0:02:56.4]} 5. Nc3 {[%clk 0:02:55.7]}
5... e6 {[%clk 0:02:56.4]} 6. Nh4 {[%clk 0:02:55.5]} 6... Bg4 {[%clk 0:02:54.2]}
7. h3 {[%clk 0:02:55.3]} 7... Bh5 {[%clk 0:02:54.3]} 8. g4 {[%clk 0:02:55.2]}
8... Ne4 {[%clk 0:02:50.5]} 9. Qb3 {[%clk 0:02:49.5]} 9... Qxh4 {[%clk
0:02:26.9]} 10. Nxe4 {[%clk 0:02:47.4]} 10... dxe4 {[%clk 0:02:09.5]} 11. Qxb7
{[%clk 0:02:42.9]} 11... Bxg4 {[%clk 0:01:52.4]} 12. Rg1 {[%clk 0:01:47.7]}
12... Bf5 {[%clk 0:01:24.6]} 13. Bg5 {[%clk 0:01:39.4]} 13... Qh5 {[%clk
0:01:23.2]} 14. Qc8# {[%clk 0:01:37.5]} 1-0

[Event "*** Titled Tuesday Blitz"]
[Site "Chess.com"]
[Date "2020.05.05"]
[Round "9"]
[White "FROGGY64"]
[Black "petroniy_arbitr"]
[Result "1-0"]
[WhiteElo "2440"]
[BlackElo "2300"]
[TimeControl "180+1"]
[EndTime "11:44:35 PDT"]
[Termination "FROGGY64 won by resignation"]

1. d4 {[%clk 0:03:00.9]} 1... d5 {[%clk 0:02:59.7]} 2. c4 {[%clk 0:03:00.4]}
2... c6 {[%clk 0:03:00]} 3. Nf3 {[%clk 0:03:00.2]} 3... Nf6 {[%clk 0:03:00.2]}
4. Qc2 {[%clk 0:03:00.1]} 4... dxc4 {[%clk 0:02:53.2]} 5. e4 {[%clk 0:02:59.4]}
5... Bg4 {[%clk 0:02:50.5]} 6. Bxc4 {[%clk 0:02:58.7]} 6... Bxf3 {[%clk
0:02:47.2]} 7. gxf3 {[%clk 0:02:58.8]} 7... Nbd7 {[%clk 0:02:47.5]} 8. Qb3
{[%clk 0:02:55.4]} 8... e6 {[%clk 0:02:31]} 9. Qxb7 {[%clk 0:02:55]} 9... Rb8
{[%clk 0:02:29.4]} 10. Qxc6 {[%clk 0:02:53.6]} 10... Bb4+ {[%clk 0:02:24.1]} 11.
Nc3 {[%clk 0:02:51.3]} 11... O-O {[%clk 0:02:21.3]} 12. Bd2 {[%clk 0:02:28.6]}
12... Rc8 {[%clk 0:02:11.9]} 13. Qb5 {[%clk 0:02:26.7]} 13... Bxc3 {[%clk
0:02:08.4]} 14. Bxc3 {[%clk 0:02:25.7]} 14... Nb6 {[%clk 0:02:04.3]} 15. Bd3
{[%clk 0:02:20.6]} 15... Qc7 {[%clk 0:01:54.5]} 16. Qg5 {[%clk 0:02:18.9]} 16...
h6 {[%clk 0:01:47.2]} 17. Qg3 {[%clk 0:02:15.5]} 17... Qd7 {[%clk 0:01:26.7]}
18. Rg1 {[%clk 0:02:13.6]} 18... Ne8 {[%clk 0:01:20.1]} 19. d5 {[%clk
0:02:01.4]} 19... exd5 {[%clk 0:01:12]} 20. Bxg7 {[%clk 0:01:58.7]} 1-0

[Event "*** Titled Tuesday Blitz"]
[Site "Chess.com"]
[Date "2020.05.05"]
[Round "9"]
[White "Shoytan"]
[Black "bakki78"]
[Result "1-0"]
[WhiteElo "2611"]
[BlackElo "2710"]
[TimeControl "180+1"]
[EndTime "11:45:00 PDT"]
[Termination "Shoytan won by resignation"]

1. e4 {[%clk 0:03:00.9]} 1... c5 {[%clk 0:02:59.3]} 2. Nf3 {[%clk 0:03:00.6]}
2... Nc6 {[%clk 0:02:59.1]} 3. d4 {[%clk 0:03:01]} 3... cxd4 {[%clk 0:02:58.8]}
4. Nxd4 {[%clk 0:03:01.9]} 4... Nf6 {[%clk 0:02:59]} 5. Nc3 {[%clk 0:03:02.4]}
5... d6 {[%clk 0:02:59.4]} 6. Bc4 {[%clk 0:03:01.9]} 6... Bd7 {[%clk 0:02:56.4]}
7. Bb3 {[%clk 0:02:56.4]} 7... e6 {[%clk 0:02:54.9]} 8. Be3 {[%clk 0:02:54.7]}
8... a6 {[%clk 0:02:46.3]} 9. Qe2 {[%clk 0:02:53.8]} 9... Rc8 {[%clk 0:02:46.6]}
10. O-O-O {[%clk 0:02:53.1]} 10... Na5 {[%clk 0:02:45.3]} 11. g4 {[%clk
0:02:49]} 11... Rxc3 {[%clk 0:02:44.9]} 12. bxc3 {[%clk 0:02:48.6]} 12... Nxe4
{[%clk 0:02:45.4]} 13. Qd3 {[%clk 0:02:42]} 13... d5 {[%clk 0:02:39.5]} 14. c4
{[%clk 0:02:42]} 14... Ba3+ {[%clk 0:02:33.5]} 15. Kb1 {[%clk 0:02:40.1]} 15...
Nc5 {[%clk 0:02:32.3]} 16. Qc3 {[%clk 0:02:34.4]} 16... Ne4 {[%clk 0:02:31.4]}
17. Qd3 {[%clk 0:02:33.6]} 17... Nc5 {[%clk 0:02:12.1]} 18. Qc3 {[%clk
0:02:26.4]} 18... O-O {[%clk 0:02:04]} 19. cxd5 {[%clk 0:02:19.2]} 19... e5
{[%clk 0:01:51.7]} 20. Ne6 {[%clk 0:02:06.1]} 20... fxe6 {[%clk 0:01:28.5]} 21.
Bxc5 {[%clk 0:02:00.7]} 21... Qc7 {[%clk 0:01:28.5]} 22. dxe6 {[%clk 0:01:48.1]}
22... Nxb3 {[%clk 0:01:28.6]} 23. Qxb3 {[%clk 0:01:45.5]} 23... Bxc5 {[%clk
0:01:17.7]} 24. Rxd7 {[%clk 0:01:40.8]} 24... Qc6 {[%clk 0:01:17.4]} 25. e7+
{[%clk 0:01:37.3]} 25... Kh8 {[%clk 0:01:17.7]} 26. exf8=Q+ {[%clk 0:01:36.7]}
26... Bxf8 {[%clk 0:01:18.3]} 27. Rhd1 {[%clk 0:01:36]} 1-0

[Event "*** Titled Tuesday Blitz"]
[Site "Chess.com"]
[Date "2020.05.05"]
[Round "9"]
[White "Trankuilizer"]
[Black "Gloomy_Wanderer"]
[Result "0-1"]
[WhiteElo "2553"]
[BlackElo "2791"]
[TimeControl "180+1"]
[EndTime "11:45:07 PDT"]
[Termination "Gloomy_Wanderer won by resignation"]

1. e4 {[%clk 0:03:00.9]} 1... c5 {[%clk 0:03:00.1]} 2. c3 {[%clk 0:02:57.7]}
2... a6 {[%clk 0:03:00.1]} 3. d4 {[%clk 0:02:57]} 3... cxd4 {[%clk 0:03:00.6]}
4. cxd4 {[%clk 0:02:57.9]} 4... d5 {[%clk 0:03:01]} 5. exd5 {[%clk 0:02:58.1]}
5... Nf6 {[%clk 0:03:01.1]} 6. Nc3 {[%clk 0:02:58.6]} 6... Nxd5 {[%clk
0:03:01.3]} 7. Qb3 {[%clk 0:02:56]} 7... Nxc3 {[%clk 0:02:59.8]} 8. bxc3 {[%clk
0:02:55.5]} 8... Qc7 {[%clk 0:02:59.2]} 9. Bd3 {[%clk 0:02:45.6]} 9... Nc6
{[%clk 0:02:48.7]} 10. Ne2 {[%clk 0:02:45.3]} 10... e5 {[%clk 0:02:43.9]} 11.
O-O {[%clk 0:02:38.3]} 11... Bd6 {[%clk 0:02:43.6]} 12. d5 {[%clk 0:02:31]}
12... Na5 {[%clk 0:02:39.8]} 13. Qa4+ {[%clk 0:02:31.3]} 13... b5 {[%clk
0:02:35.1]} 14. Qh4 {[%clk 0:02:30.9]} 14... f5 {[%clk 0:02:27.1]} 15. Re1
{[%clk 0:01:39.5]} 15... O-O {[%clk 0:02:21]} 16. a4 {[%clk 0:01:30]} 16... Nb3
{[%clk 0:02:10.3]} 17. Rb1 {[%clk 0:01:22.4]} 17... bxa4 {[%clk 0:02:07.8]} 18.
c4 {[%clk 0:01:18.9]} 18... Nxc1 {[%clk 0:02:03]} 19. Rexc1 {[%clk 0:01:12.1]}
19... Bc5 {[%clk 0:02:00.3]} 20. Nc3 {[%clk 0:01:06.5]} 20... Bd7 {[%clk
0:01:59.8]} 21. Bc2 {[%clk 0:01:06.5]} 21... a3 {[%clk 0:01:56.3]} 22. Ba4
{[%clk 0:01:05.2]} 22... Rab8 {[%clk 0:01:45.2]} 23. Ra1 {[%clk 0:01:03.1]}
23... Rb2 {[%clk 0:01:43.6]} 24. Qg3 {[%clk 0:01:01.5]} 24... Bxf2+ {[%clk
0:01:41.1]} 0-1

[Event "*** Titled Tuesday Blitz"]
[Site "Chess.com"]
[Date "2020.05.05"]
[Round "9"]
[White "Walter_White_Poland"]
[Black "BIG_Pirate"]
[Result "0-1"]
[WhiteElo "2156"]
[BlackElo "2297"]
[TimeControl "180+1"]
[EndTime "11:45:10 PDT"]
[Termination "BIG_Pirate won by resignation"]

1. e4 {[%clk 0:03:00.9]} 1... d5 {[%clk 0:02:59.9]} 2. exd5 {[%clk 0:03:00.4]}
2... Qxd5 {[%clk 0:03:00.8]} 3. Nc3 {[%clk 0:03:00.8]} 3... Qa5 {[%clk
0:03:00.8]} 4. d4 {[%clk 0:03:00.6]} 4... Nf6 {[%clk 0:03:01.2]} 5. Nf3 {[%clk
0:03:00.3]} 5... Bg4 {[%clk 0:03:01.6]} 6. h3 {[%clk 0:02:56.6]} 6... Bh5 {[%clk
0:03:01.8]} 7. g4 {[%clk 0:02:56.7]} 7... Bg6 {[%clk 0:03:01.9]} 8. Ne5 {[%clk
0:02:56.9]} 8... e6 {[%clk 0:03:02.3]} 9. Nc4 {[%clk 0:02:55.4]} 9... Qa6 {[%clk
0:03:01.7]} 10. Bf4 {[%clk 0:02:00.2]} 10... Qc6 {[%clk 0:02:58.8]} 11. Rg1
{[%clk 0:01:42.8]} 11... Bb4 {[%clk 0:02:52.9]} 12. Ne3 {[%clk 0:01:06.4]} 12...
Bxc3+ {[%clk 0:02:39.9]} 13. bxc3 {[%clk 0:01:06]} 13... Qxc3+ {[%clk
0:02:40.8]} 14. Ke2 {[%clk 0:01:06.3]} 14... Nc6 {[%clk 0:02:36.3]} 15. Kf3
{[%clk 0:00:42.2]} 15... O-O-O {[%clk 0:02:13.5]} 16. Kg2 {[%clk 0:00:26.8]}
16... Nxd4 {[%clk 0:02:11.5]} 17. Rb1 {[%clk 0:00:20]} 17... Be4+ {[%clk
0:02:08.3]} 18. Kh2 {[%clk 0:00:19.6]} 18... Nf3+ {[%clk 0:02:08.1]} 19. Kg3
{[%clk 0:00:18.2]} 19... Rxd1 {[%clk 0:02:07.7]} 0-1

[Event "*** Titled Tuesday Blitz"]
[Site "Chess.com"]
[Date "2020.05.05"]
[Round "9"]
[White "mjray79"]
[Black "szefru"]
[Result "1-0"]
[WhiteElo "2244"]
[BlackElo "2092"]
[TimeControl "180+1"]
[EndTime "11:45:19 PDT"]
[Termination "mjray79 won by resignation"]

1. d4 {[%clk 0:03:00.9]} 1... Nf6 {[%clk 0:02:59.3]} 2. c4 {[%clk 0:03:01.2]}
2... g6 {[%clk 0:02:59.5]} 3. Nc3 {[%clk 0:02:59]} 3... Bg7 {[%clk 0:02:59.4]}
4. e4 {[%clk 0:02:59.1]} 4... d6 {[%clk 0:02:59.4]} 5. Nge2 {[%clk 0:02:59.5]}
5... O-O {[%clk 0:02:59]} 6. Ng3 {[%clk 0:02:59.9]} 6... h5 {[%clk 0:02:56.4]}
7. Be2 {[%clk 0:02:58]} 7... h4 {[%clk 0:02:52.9]} 8. Nf1 {[%clk 0:02:57.8]}
8... c5 {[%clk 0:02:47.2]} 9. d5 {[%clk 0:02:56.9]} 9... e6 {[%clk 0:02:46.3]}
10. Bg5 {[%clk 0:02:55.8]} 10... Qb6 {[%clk 0:02:40.1]} 11. Rb1 {[%clk 0:02:35]}
11... h3 {[%clk 0:02:37.1]} 12. g4 {[%clk 0:02:34.4]} 12... exd5 {[%clk
0:02:34.5]} 13. cxd5 {[%clk 0:02:33.6]} 13... Re8 {[%clk 0:02:27.9]} 14. Ng3
{[%clk 0:02:30.8]} 14... Nbd7 {[%clk 0:02:07.8]} 15. O-O {[%clk 0:02:29.5]}
15... Ne5 {[%clk 0:02:07.8]} 16. f3 {[%clk 0:02:25.4]} 16... Nh7 {[%clk
0:01:32.6]} 17. Be3 {[%clk 0:02:23.1]} 17... Bd7 {[%clk 0:01:21.3]} 18. f4
{[%clk 0:02:19.8]} 18... Nxg4 {[%clk 0:01:11.9]} 19. Bxg4 {[%clk 0:02:19.5]}
19... Bxg4 {[%clk 0:01:10.5]} 20. Qxg4 {[%clk 0:02:20.4]} 20... Nf6 {[%clk
0:01:11.2]} 21. Qxh3 {[%clk 0:02:19.7]} 21... Qb4 {[%clk 0:01:06.4]} 22. f5
{[%clk 0:02:17.9]} 22... Qc4 {[%clk 0:00:47.6]} 23. Bg5 {[%clk 0:02:08.3]} 23...
Nd7 {[%clk 0:00:39.5]} 24. fxg6 {[%clk 0:02:04.3]} 24... fxg6 {[%clk 0:00:39]}
25. Qxd7 {[%clk 0:02:02.4]} 1-0

[Event "*** Titled Tuesday Blitz"]
[Site "Chess.com"]
[Date "2020.05.05"]
[Round "9"]
[White "Azatic"]
[Black "Durarbayli"]
[Result "0-1"]
[WhiteElo "2639"]
[BlackElo "2825"]
[TimeControl "180+1"]
[EndTime "11:45:29 PDT"]
[Termination "Durarbayli won by resignation"]

1. e4 {[%clk 0:03:00.9]} 1... c5 {[%clk 0:03:00]} 2. Nf3 {[%clk 0:02:56.1]} 2...
d6 {[%clk 0:03:00.5]} 3. d4 {[%clk 0:02:56]} 3... cxd4 {[%clk 0:03:01.4]} 4.
Nxd4 {[%clk 0:02:56.9]} 4... Nf6 {[%clk 0:03:01.9]} 5. Nc3 {[%clk 0:02:56.8]}
5... Nc6 {[%clk 0:03:02.4]} 6. Be2 {[%clk 0:02:56.2]} 6... g6 {[%clk 0:02:59.1]}
7. O-O {[%clk 0:02:55.1]} 7... Bg7 {[%clk 0:02:59.2]} 8. Nb3 {[%clk 0:02:55.6]}
8... O-O {[%clk 0:02:58.8]} 9. Re1 {[%clk 0:02:55.6]} 9... a5 {[%clk 0:02:55.8]}
10. a4 {[%clk 0:02:54.9]} 10... Be6 {[%clk 0:02:56]} 11. Bf1 {[%clk 0:02:53.6]}
11... Bxb3 {[%clk 0:02:55.6]} 12. cxb3 {[%clk 0:02:52.7]} 12... Nd7 {[%clk
0:02:47.6]} 13. Be3 {[%clk 0:02:48.6]} 13... Rc8 {[%clk 0:02:45.2]} 14. Rc1
{[%clk 0:02:48.1]} 14... Nb4 {[%clk 0:02:43.2]} 15. f4 {[%clk 0:02:43.2]} 15...
Nc5 {[%clk 0:02:14.6]} 16. Bc4 {[%clk 0:02:17]} 16... e6 {[%clk 0:02:14.2]} 17.
Qd2 {[%clk 0:01:48.4]} 17... Qe7 {[%clk 0:02:13.7]} 18. Rcd1 {[%clk 0:01:42]}
18... Rfd8 {[%clk 0:02:12.8]} 19. e5 {[%clk 0:01:21.7]} 19... dxe5 {[%clk
0:02:03.8]} 20. Qf2 {[%clk 0:01:09]} 20... Ncd3 {[%clk 0:01:57.8]} 21. Qg3
{[%clk 0:00:56.1]} 21... exf4 {[%clk 0:01:55.2]} 22. Bxf4 {[%clk 0:00:54]} 22...
Bd4+ {[%clk 0:01:48.5]} 23. Re3 {[%clk 0:00:43.2]} 23... Nxf4 {[%clk 0:01:45.2]}
24. Rd3 {[%clk 0:00:43]} 0-1

[Event "*** Titled Tuesday Blitz"]
[Site "Chess.com"]
[Date "2020.05.05"]
[Round "9"]
[White "Omk124"]
[Black "CSB7"]
[Result "0-1"]
[WhiteElo "2401"]
[BlackElo "2543"]
[TimeControl "180+1"]
[EndTime "11:45:29 PDT"]
[Termination "CSB7 won by resignation"]

1. e4 {[%clk 0:03:00.9]} 1... c5 {[%clk 0:03:00.3]} 2. Nf3 {[%clk 0:03:01.1]}
2... e6 {[%clk 0:03:00.5]} 3. c4 {[%clk 0:03:00.6]} 3... Nc6 {[%clk 0:03:00.2]}
4. Nc3 {[%clk 0:03:00.6]} 4... Nd4 {[%clk 0:02:58.8]} 5. d3 {[%clk 0:02:57]}
5... Ne7 {[%clk 0:02:58.3]} 6. Be2 {[%clk 0:02:55.7]} 6... Nec6 {[%clk
0:02:56.4]} 7. O-O {[%clk 0:02:55.7]} 7... g6 {[%clk 0:02:56.8]} 8. Nxd4 {[%clk
0:02:52.1]} 8... cxd4 {[%clk 0:02:56.2]} 9. Nb1 {[%clk 0:02:51.6]} 9... Bg7
{[%clk 0:02:55.9]} 10. f4 {[%clk 0:02:52.1]} 10... O-O {[%clk 0:02:53.8]} 11.
Nd2 {[%clk 0:02:45.6]} 11... a6 {[%clk 0:02:36.9]} 12. f5 {[%clk 0:02:39.5]}
12... b5 {[%clk 0:02:23]} 13. b3 {[%clk 0:02:33.5]} 13... d6 {[%clk 0:01:26.3]}
14. Ba3 {[%clk 0:02:12.4]} 14... exf5 {[%clk 0:01:18.4]} 15. exf5 {[%clk
0:02:11.8]} 15... Bxf5 {[%clk 0:01:18.9]} 16. Ne4 {[%clk 0:02:08.4]} 16... Bxe4
{[%clk 0:01:07.6]} 17. dxe4 {[%clk 0:02:09.3]} 17... b4 {[%clk 0:01:00.2]} 18.
Bb2 {[%clk 0:02:09.3]} 18... d3 {[%clk 0:00:59.9]} 19. Bxg7 {[%clk 0:01:50.7]}
19... dxe2 {[%clk 0:00:59.4]} 20. Qxe2 {[%clk 0:01:51.6]} 20... Kxg7 {[%clk
0:00:57.6]} 21. Rad1 {[%clk 0:01:52.5]} 21... Qe7 {[%clk 0:00:53.2]} 22. Qf3
{[%clk 0:01:49]} 22... Rae8 {[%clk 0:00:49.4]} 23. Rfe1 {[%clk 0:01:47.2]} 23...
f5 {[%clk 0:00:43.3]} 24. exf5 {[%clk 0:01:43.6]} 24... Qxe1+ {[%clk 0:00:42.2]}
25. Rxe1 {[%clk 0:01:43.7]} 25... Rxe1+ {[%clk 0:00:42.8]} 26. Kf2 {[%clk
0:01:44.4]} 26... Rxf5 {[%clk 0:00:43.1]} 0-1

[Event "*** Titled Tuesday Blitz"]
[Site "Chess.com"]
[Date "2020.05.05"]
[Round "9"]
[White "archess2"]
[Black "Bossche-CM"]
[Result "1-0"]
[WhiteElo "2300"]
[BlackElo "2442"]
[TimeControl "180+1"]
[EndTime "11:45:39 PDT"]
[Termination "archess2 won by resignation"]

1. d4 {[%clk 0:03:00.9]} 1... Nf6 {[%clk 0:02:59.3]} 2. c4 {[%clk 0:02:57.4]}
2... e6 {[%clk 0:02:59.4]} 3. Nc3 {[%clk 0:02:57]} 3... c5 {[%clk 0:02:58.4]} 4.
d5 {[%clk 0:02:56.8]} 4... exd5 {[%clk 0:02:58.4]} 5. cxd5 {[%clk 0:02:52.7]}
5... d6 {[%clk 0:02:58.6]} 6. e4 {[%clk 0:02:50.9]} 6... g6 {[%clk 0:02:58.7]}
7. f4 {[%clk 0:02:50.2]} 7... Bg7 {[%clk 0:02:53.9]} 8. Nf3 {[%clk 0:02:49.8]}
8... O-O {[%clk 0:02:49.7]} 9. Be2 {[%clk 0:02:49.9]} 9... Re8 {[%clk 0:02:49]}
10. e5 {[%clk 0:02:49.6]} 10... Nfd7 {[%clk 0:02:42.7]} 11. O-O {[%clk
0:02:39.5]} 11... dxe5 {[%clk 0:02:41.1]} 12. f5 {[%clk 0:02:39.7]} 12... e4
{[%clk 0:02:37.6]} 13. Ng5 {[%clk 0:02:34.6]} 13... e3 {[%clk 0:02:27.3]} 14.
fxg6 {[%clk 0:02:34.4]} 14... fxg6 {[%clk 0:02:24]} 15. Ne6 {[%clk 0:02:17.2]}
15... Qb6 {[%clk 0:02:09.5]} 16. Na4 {[%clk 0:02:01.3]} 16... Qa5 {[%clk
0:02:05.4]} 17. Bxe3 {[%clk 0:01:57.8]} 17... Nf8 {[%clk 0:02:04.7]} 18. Bd2
{[%clk 0:01:41.6]} 18... Nxe6 {[%clk 0:01:58.6]} 19. Bxa5 {[%clk 0:01:36.6]}
19... Nd4 {[%clk 0:01:58.8]} 20. Bc4 {[%clk 0:01:30.1]} 20... b5 {[%clk
0:01:57.7]} 21. Bxb5 {[%clk 0:01:20.8]} 21... Nxb5 {[%clk 0:01:55]} 22. d6
{[%clk 0:01:19.9]} 22... Bd4+ {[%clk 0:01:32.7]} 23. Kh1 {[%clk 0:01:19.1]}
23... Bb7 {[%clk 0:01:33]} 24. Qb3+ {[%clk 0:01:11.7]} 24... Kg7 {[%clk
0:01:29.1]} 25. Qxb5 {[%clk 0:01:11.1]} 25... Bc6 {[%clk 0:01:29.4]} 26. Qc4
{[%clk 0:01:09.5]} 26... Nd7 {[%clk 0:01:28]} 27. Qf7+ {[%clk 0:01:03.5]} 27...
Kh6 {[%clk 0:01:25.7]} 28. Bd2+ {[%clk 0:00:54.9]} 1-0

[Event "*** Titled Tuesday Blitz"]
[Site "Chess.com"]
[Date "2020.05.05"]
[Round "9"]
[White "Phenix2k"]
[Black "Andrei_Belozerov"]
[Result "0-1"]
[WhiteElo "2327"]
[BlackElo "2589"]
[TimeControl "180+1"]
[EndTime "11:45:45 PDT"]
[Termination "Andrei_Belozerov won by checkmate"]

1. d4 {[%clk 0:03:00.9]} 1... d5 {[%clk 0:02:58.4]} 2. Nf3 {[%clk 0:02:59.8]}
2... Nf6 {[%clk 0:02:57.4]} 3. g3 {[%clk 0:03:00]} 3... Bg4 {[%clk 0:02:55.1]}
4. Bg2 {[%clk 0:02:58.1]} 4... e6 {[%clk 0:02:54.1]} 5. c4 {[%clk 0:02:57.9]}
5... c6 {[%clk 0:02:53.7]} 6. Qb3 {[%clk 0:02:55.1]} 6... Qb6 {[%clk 0:02:52.3]}
7. c5 {[%clk 0:02:55.3]} 7... Qc7 {[%clk 0:02:51]} 8. Bf4 {[%clk 0:02:52.4]}
8... Qc8 {[%clk 0:02:50.5]} 9. h3 {[%clk 0:02:49.4]} 9... Bh5 {[%clk 0:02:47]}
10. g4 {[%clk 0:02:43.9]} 10... Bg6 {[%clk 0:02:45.3]} 11. Nc3 {[%clk
0:02:44.4]} 11... Nbd7 {[%clk 0:02:43.8]} 12. O-O {[%clk 0:02:42]} 12... b6
{[%clk 0:02:41.4]} 13. cxb6 {[%clk 0:02:39.5]} 13... axb6 {[%clk 0:02:40.5]} 14.
Rfc1 {[%clk 0:02:38.3]} 14... Qb7 {[%clk 0:02:38.7]} 15. Ne5 {[%clk 0:02:22.2]}
15... Nxe5 {[%clk 0:02:33.1]} 16. dxe5 {[%clk 0:02:20.8]} 16... Nd7 {[%clk
0:02:32.1]} 17. e4 {[%clk 0:02:18.9]} 17... Nc5 {[%clk 0:02:27.7]} 18. Qc2
{[%clk 0:02:13.1]} 18... d4 {[%clk 0:02:11.6]} 19. b4 {[%clk 0:01:58.8]} 19...
dxc3 {[%clk 0:02:07.7]} 20. bxc5 {[%clk 0:01:57.7]} 20... Bxc5 {[%clk
0:02:06.8]} 21. Qxc3 {[%clk 0:01:55.4]} 21... O-O {[%clk 0:02:04.6]} 22. Bg3
{[%clk 0:01:47.5]} 22... Ra3 {[%clk 0:02:02.3]} 23. Qe1 {[%clk 0:01:45.6]} 23...
Rxg3 {[%clk 0:02:00.4]} 24. Rxc5 {[%clk 0:01:41.8]} 24... Rxg2+ {[%clk
0:01:59.4]} 25. Kxg2 {[%clk 0:01:39.9]} 25... bxc5 {[%clk 0:01:59]} 26. f4
{[%clk 0:01:40.5]} 26... Qb2+ {[%clk 0:01:56.2]} 27. Kg3 {[%clk 0:01:39]} 27...
Ra8 {[%clk 0:01:52.5]} 28. f5 {[%clk 0:01:35.4]} 28... Qxe5+ {[%clk 0:01:49.2]}
29. Kg2 {[%clk 0:01:26.8]} 29... Qb2+ {[%clk 0:01:46.6]} 30. Kg3 {[%clk
0:01:24]} 30... Ra3+ {[%clk 0:01:45]} 31. Kh4 {[%clk 0:01:23.9]} 31... Qe5
{[%clk 0:01:32.4]} 32. fxg6 {[%clk 0:01:16.9]} 32... hxg6 {[%clk 0:01:30.5]} 33.
g5 {[%clk 0:01:11.6]} 33... Qf4# {[%clk 0:01:29.1]} 0-1

[Event "*** Titled Tuesday Blitz"]
[Site "Chess.com"]
[Date "2020.05.05"]
[Round "9"]
[White "marszach123"]
[Black "CHENNAIBOND"]
[Result "1-0"]
[WhiteElo "2143"]
[BlackElo "1258"]
[TimeControl "180+1"]
[EndTime "11:45:51 PDT"]
[Termination "marszach123 won by resignation"]

1. e4 {[%clk 0:03:00.9]} 1... c5 {[%clk 0:03:00.6]} 2. Nf3 {[%clk 0:03:00.9]}
2... Nc6 {[%clk 0:03:01]} 3. d4 {[%clk 0:03:01.2]} 3... cxd4 {[%clk 0:03:01]} 4.
Nxd4 {[%clk 0:03:01.7]} 4... Nf6 {[%clk 0:03:01.6]} 5. Nc3 {[%clk 0:03:01.7]}
5... e5 {[%clk 0:03:02]} 6. Ndb5 {[%clk 0:03:01.1]} 6... d6 {[%clk 0:03:02]} 7.
Bg5 {[%clk 0:03:00]} 7... a6 {[%clk 0:03:02.5]} 8. Na3 {[%clk 0:02:55.7]} 8...
b5 {[%clk 0:03:02.7]} 9. Nd5 {[%clk 0:02:54.3]} 9... Be7 {[%clk 0:03:02.4]} 10.
Bxf6 {[%clk 0:02:54.7]} 10... Bxf6 {[%clk 0:03:02.5]} 11. c3 {[%clk 0:02:54.6]}
11... O-O {[%clk 0:03:02.1]} 12. Nc2 {[%clk 0:02:53.4]} 12... Bg5 {[%clk
0:03:02]} 13. a4 {[%clk 0:02:53]} 13... bxa4 {[%clk 0:03:01.3]} 14. Rxa4 {[%clk
0:02:51.9]} 14... a5 {[%clk 0:03:01.5]} 15. Bc4 {[%clk 0:02:50.4]} 15... Be6
{[%clk 0:02:54.2]} 16. h4 {[%clk 0:02:31.4]} 16... Bh6 {[%clk 0:02:49.8]} 17.
Bb5 {[%clk 0:02:30.2]} 17... Ne7 {[%clk 0:02:46.7]} 18. Nce3 {[%clk 0:02:19.2]}
18... Bxe3 {[%clk 0:02:40.3]} 19. Nxe3 {[%clk 0:02:18.2]} 19... d5 {[%clk
0:02:38.8]} 20. exd5 {[%clk 0:02:14.1]} 20... Nxd5 {[%clk 0:02:36.4]} 21. Nxd5
{[%clk 0:02:10.3]} 21... Bxd5 {[%clk 0:02:27.9]} 22. O-O {[%clk 0:02:04.1]}
22... Be6 {[%clk 0:02:12.1]} 23. Qxd8 {[%clk 0:01:53.5]} 23... Rfxd8 {[%clk
0:02:13]} 24. Rfa1 {[%clk 0:01:52.6]} 24... f5 {[%clk 0:01:56.3]} 25. Rxa5
{[%clk 0:01:52.5]} 25... Rd1+ {[%clk 0:01:53.8]} 26. Rxd1 {[%clk 0:01:49.7]}
26... Rxa5 {[%clk 0:01:53.8]} 27. Bd7 {[%clk 0:01:44.6]} 27... Kf7 {[%clk
0:01:50.4]} 28. Rd6 {[%clk 0:01:34.5]} 28... Ke7 {[%clk 0:01:32.7]} 29. Rxe6+
{[%clk 0:01:32.2]} 29... Kxd7 {[%clk 0:01:32.7]} 30. Rb6 {[%clk 0:01:31.3]}
30... Kc7 {[%clk 0:01:31.6]} 31. Rb4 {[%clk 0:01:30.4]} 31... Kc6 {[%clk
0:01:27.2]} 32. Kf1 {[%clk 0:01:28.7]} 32... f4 {[%clk 0:01:20.1]} 33. Ke2
{[%clk 0:01:25.4]} 33... Rb5 {[%clk 0:01:09.2]} 34. Rxb5 {[%clk 0:01:22.8]}
34... Kxb5 {[%clk 0:01:09.3]} 35. Kd3 {[%clk 0:01:23]} 1-0